[Event "Czech Open-Rapid 2022"]
[Site "Pardubice"]
[Date "2022.07.20"]
[Round "3.22"]
[White "Strebkovs, Andrejs"]
[Black "Sosnik, Sebastian"]
[Result "1-0"]
[ECO "A46"]
[WhiteElo "2283"]
[BlackElo "2255"]
[Annotator "TA"]
[PlyCount "69"]
[EventDate "2022.07.20"]
[EventType "swiss"]
[EventCountry "CZE"]
[SourceTitle "playchess.com"]
[Source "ChessBase"]
[SourceQuality "1"]
[TimeControl "1200+10"]

{[%evp 16,69,0,-7,-9,-24,-19,-44,-36,-112,-57,-53,-67,-54,-63,-52,-41,-56,-6,-6,-10,-14,-14,-25,0,-15,-14,-17,0,0,0,0,0,0,4,7,4,5,290,270,397,392,373,371,583,583,563,521,5622,5426,5185,3033,29975,29974,6280,5306]} 1. d4 {[%emt 0:00:06]} Nf6 {[%emt 0:00:04]} 2. Nf3 {[%emt 0:00:05]} c5 {[%emt 0:00:05]} 3. dxc5 {[%emt 0:01:18]} Na6 {[%emt 0:00:11]} 4. c4 {[%emt 0:00:31]} Nxc5 {[%emt 0:00:09]} 5. Nc3 {[%emt 0:00:13]} g6 {[%emt 0:01:14]} 6. e3 {[%emt 0:01:22]} Bg7 {[%emt 0:00:04]} 7. Be2 {[%emt 0:00:05]} O-O {[%emt 0:00:06]} 8. O-O {[%emt 0:00:05]} b6 {[%emt 0:01:42]} 9. Nd4 {[%emt 0:00:40]} Bb7 {[%emt 0:00:05] E61: King's Indian: Early deviations for White, including Smyslov System.} 10. b3 {[%emt 0:01:36] Recently 10.Bf3 got a lot of attention.} d5 {[%emt 0:03:17]} 11. cxd5 {[%emt 0:02:12]} Nxd5 {[%emt 0:00:07] Black is slightly better.} 12. Bb2 {[%emt 0:00:18]} (12. Nxd5 $15 Qxd5 13. Bf3) 12... Nxc3 {[%emt 0:02:19]} (12... e5 $1 $17 {[%cal Re5d4]} 13. Ndb5 Nxc3 14. Nxc3 e4) 13. Bxc3 $15 {[%emt 0:00:04]} e5 {[%emt 0:03:03]} 14. Nf3 {[%emt 0:02:05]} Qe7 {[%emt 0:00:28]} 15. Rc1 {[%emt 0:02:01]} Rfd8 {[%emt 0:00:08]} 16. Qc2 {[%emt 0:00:56]} Ne4 {[%emt 0:00:54]} (16... Be4 $15 17. Qb2 Bd3) 17. Bb2 $11 {[%emt 0:01:18] [#]} Rac8 $146 {[%emt 0:00:16]} ({Predecessor:} 17... Ng5 18. Nxg5 Qxg5 19. g3 Rac8 20. Qb1 Rxc1 21. Qxc1 Rc8 22. Qb1 h5 23. h4 Qf6 {0-1 (31) Lechtynsky,J (2365)-Stocek,J (2540) Ostrava 2014}) 18. Qb1 {[%emt 0:00:12]} Rxc1 {[%emt 0:03:24]} 19. Qxc1 {[%emt 0:01:57]} (19. Rxc1 {is interesting.} Nd2 20. Qc2 Bxf3 21. Bxf3 Nxf3+ 22. gxf3 h5 23. Rd1) 19... Ng5 {[%emt 0:00:10] Hoping for ...Nxf3+.} 20. Rd1 {[%emt 0:01:51]} (20. Nxg5 {is interesting.} Qxg5 21. g3 Qf5 22. Qc7) 20... Nxf3+ {[%emt 0:00:23]} (20... Rc8 {looks sharper.} 21. Qd2 Nxf3+ 22. Bxf3 Bxf3 23. gxf3 h5) 21. Bxf3 {[%emt 0:00:28]} Bxf3 {[%emt 0:00:04]} 22. Rxd8+ {[%emt 0:00:30]} Qxd8 {[%emt 0:00:03]} 23. gxf3 {[%emt 0:00:02][%mdl 4096] Endgame KQB-KQB} Qg5+ {[%emt 0:00:15]} 24. Kf1 {[%emt 0:00:08]} h5 {[%emt 0:00:08]} 25. Qc8+ {[%emt 0:00:36]} Kh7 {[%emt 0:00:03]} 26. Qd7 {[%emt 0:00:28][%csl LRa7,LRf7]} h4 $2 {[%emt 0:00:09][%mdl 8192] Black cannot hold the game after this.} (26... Qf5 $11 {and Black has nothing to worry.} 27. Qxf5 gxf5) 27. Qxf7 $18 {[%emt 0:00:50]} h3 {[%emt 0:00:13]} (27... Kh6 $142 28. Qd7 (28. Qxa7 Qf5 $11) 28... Qf5 29. Qxf5 gxf5) 28. Ke2 {[%emt 0:00:07] Active counter play!} Kh6 {[%emt 0:01:48]} 29. Qe6 {[%emt 0:00:29]} Qf5 {[%emt 0:00:44] [#]} (29... Qg2 {was worth a try.} 30. Bxe5 Bxe5) 30. Qxf5 $1 {[%emt 0:00:37]} gxf5 {[%emt 0:00:02]} 31. f4 {[%emt 0:00:14]} e4 {[%emt 0:02:35] [#]} 32. Bxg7+ {[%emt 0:00:13]} Kxg7 {[%emt 0:00:02]} 33. f3 {[%emt 0:00:13]} Kg6 {[%emt 0:00:16]} 34. fxe4 {[%emt 0:00:16]} fxe4 {[%emt 0:00:02]} 35. Kf2 {[%emt 0:00:03] Weighted Error Value: White=0.07 (flawless) /Black=0.83} 1-0

[Event "Czech Open-Rapid 2022"]
[Site "Pardubice"]
[Date "2022.07.20"]
[Round "3.23"]
[White "Tichy, Stepan"]
[Black "Kuznecova, Marija"]
[Result "1-0"]
[ECO "A01"]
[WhiteElo "2207"]
[BlackElo "1755"]
[Annotator "TA"]
[PlyCount "99"]
[EventDate "2022.07.20"]
[EventType "swiss"]
[EventCountry "CZE"]
[SourceTitle "playchess.com"]
[Source "ChessBase"]
[SourceQuality "1"]
[TimeControl "1200+10"]

{[%evp 13,99,33,37,23,25,23,27,11,15,21,25,14,21,1,18,19,33,24,40,0,85,85,87,84,78,10,37,38,239,227,225,22,78,41,114,27,27,22,22,8,10,10,14,0,4,0,6,2,14,11,12,13,18,19,104,7,11,0,0,13,5,0,31,32,47,5,4,4,27,0,0,-8,-8,-59,0,0,0,0,8,0,0,-409,843,795,818,794,1116,912]} 1. b3 {[%emt 0:00:02]} Nf6 {[%emt 0:00:07]} 2. Bb2 {[%emt 0:00:03]} g6 {[%emt 0:00:02]} 3. c4 {[%emt 0:00:12]} Bg7 {[%emt 0:00:02]} 4. g3 {[%emt 0:00:11]} O-O {[%emt 0:00:38]} 5. Bg2 {[%emt 0:00:04]} Nc6 {[%emt 0:00:07]} 6. Nf3 {[%emt 0:00:10]} b6 {[%emt 0:00:27]} 7. O-O {[%emt 0:00:12]} Bb7 {[%emt 0:00:01]} 8. d3 {[%emt 0:00:44] A05: Réti Opening: 1 Nf3 Nf6.} e6 {[%emt 0:00:45]} 9. Nbd2 {[%emt 0:00:24]} Ne7 {[%emt 0:00:25]} 10. Rc1 {[%emt 0:00:27] White has an edge.} c5 {[%emt 0:00:18] [#]} 11. d4 $146 {[%emt 0:02:19]} ({Predecessor:} 11. Rc2 d5 12. cxd5 Nexd5 13. a3 Rc8 14. Qa1 Qe7 15. Rfc1 Rfd8 16. Nc4 Ne8 17. d4 {1-0 (24) Beelby,M (2335)-Sutterer,R (2235) Los Angeles 1991}) 11... cxd4 {[%emt 0:02:29]} 12. Bxd4 {[%emt 0:00:04]} Re8 {[%emt 0:01:01]} 13. Qc2 {[%emt 0:01:06]} Rc8 {[%emt 0:00:45]} 14. Qb2 {[%emt 0:00:06]} Nc6 {[%emt 0:01:09]} 15. Bc3 {[%emt 0:00:23][%cal Od2e4]} d5 {[%emt 0:00:32]} 16. e3 {[%emt 0:00:34]} Nh5 {[%emt 0:01:05]} (16... e5 $11) 17. Bxg7 $16 {[%emt 0:00:57]} Nxg7 {[%emt 0:00:02]} 18. Rfd1 {[%emt 0:00:03][%cal Od2e4]} Qe7 {[%emt 0:01:50]} 19. Ne5 {[%emt 0:01:48]} (19. cxd5 $16 exd5 20. Nb1) 19... Nxe5 {[%emt 0:01:56]} (19... Qf6 {looks sharper.} 20. Nd3 Qxb2 21. Nxb2 Red8) 20. Qxe5 {[%emt 0:00:02]} dxc4 $2 {[%emt 0:00:50]} ({Black should try} 20... f6 $14 21. Qb2 Red8) 21. Bxb7 $18 {[%emt 0:00:10]} ({And not} 21. bxc4 Bxg2 22. Kxg2 Red8 $11) ({Not} 21. Rxc4 Ba6 $11) (21. Nxc4 Bxg2 22. Kxg2 Red8 $14) 21... Qxb7 {[%emt 0:00:02]} 22. Nxc4 $2 {[%emt 0:00:06]} ({White has to play} 22. Ne4 $18) 22... Rc5 {[%emt 0:00:04]} (22... Red8 $11 {keeps the balance.}) 23. Qb2 {[%emt 0:01:31] [#] Strongly threatening Nd6. White is more active.} Qc7 {[%emt 0:01:23]} (23... Qb8 $14) 24. Nd2 {[%emt 0:01:14]} (24. Nd6 $16 {[%cal Ob2g7] Qxg7+! is the strong threat.} Rxc1 25. Qxc1 Qxc1 26. Rxc1) 24... Rxc1 $1 $11 {[%emt 0:02:13]} 25. Rxc1 {[%emt 0:00:06]} Qb7 {[%emt 0:00:02]} 26. Qe5 {[%emt 0:00:19] Threatens to win with Ne4.} Rc8 {[%emt 0:00:44]} 27. Rxc8+ {[%emt 0:00:15]} Qxc8 {[%emt 0:00:01][%mdl 4096] Endgame KQN-KQN} 28. Ne4 {[%emt 0:00:03] Black must now prevent Nf6+.} Ne8 {[%emt 0:00:48]} 29. h4 {[%emt 0:01:00]} Qd8 {[%emt 0:00:51]} 30. Kg2 {[%emt 0:00:33]} Qd5 {[%emt 0:02:00]} 31. Qxd5 {[%emt 0:00:02]} exd5 {[%emt 0:00:02] KN-KN} 32. Nc3 {[%emt 0:00:02]} Nc7 {[%emt 0:00:07]} 33. Kf3 {[%emt 0:00:22]} Kf8 {[%emt 0:00:05] [#]} (33... f6 $1 $11 {remains equal.}) 34. Kf4 {[%emt 0:00:26]} (34. e4 $1 $16) 34... f6 $1 {[%emt 0:00:08]} 35. e4 dxe4 {[%emt 0:01:32]} 36. Kxe4 {[%emt 0:02:45]} Kf7 $1 {[%emt 0:00:23]} 37. Nd5 {[%emt 0:00:59]} Na6 {[%emt 0:00:25]} 38. b4 {[%emt 0:00:38]} Ke6 {[%emt 0:00:17]} 39. a3 {[%emt 0:00:05]} f5+ {[%emt 0:00:43]} 40. Kd4 {[%emt 0:00:13]} Kd6 {[%emt 0:00:12]} 41. h5 {[%emt 0:01:29]} gxh5 {[%emt 0:00:10]} 42. Nf6 {[%emt 0:00:45]} Nc7 {[%emt 0:00:08]} 43. Kc4 {[%emt 0:00:17] Inhibits Nb5.} (43. Nxh5 $11 Nb5+ 44. Kd3) 43... a6 {[%emt 0:00:16]} (43... f4 $15) 44. Nxh5 {[%emt 0:00:24]} Ne8 {[%emt 0:00:05]} 45. Kd4 {[%emt 0:00:09]} h6 {[%emt 0:00:13]} 46. f3 {[%emt 0:00:08]} b5 {[%emt 0:00:08]} 47. f4 $2 {[%emt 0:00:14][%mdl 8192]} (47. g4 $11 {and White stays safe.}) 47... Nc7 $4 {[%emt 0:00:08][%mdl 8192]} (47... Ke6 $19 48. Kc5 Kf7) 48. Ng7 $18 {[%emt 0:00:05] White is clearly winning.} h5 {[%emt 0:00:17]} 49. Nxf5+ {[%emt 0:00:05]} Kc6 {[%emt 0:00:04]} 50. Ng7 {[%emt 0:00:10] Weighted Error Value: White=0.46/Black=0.26 (precise)} 1-0

[Event "Czech Open-Rapid 2022"]
[Site "Pardubice"]
[Date "2022.07.20"]
[Round "3.24"]
[White "Sir, Zbynek"]
[Black "Tesar, Jan"]
[Result "1-0"]
[ECO "B42"]
[WhiteElo "2199"]
[BlackElo "1975"]
[Annotator "TA"]
[PlyCount "57"]
[EventDate "2022.07.20"]
[EventType "swiss"]
[EventCountry "CZE"]
[SourceTitle "playchess.com"]
[Source "ChessBase"]
[SourceQuality "1"]
[TimeControl "1200+10"]

{[%evp 11,56,40,35,37,36,14,15,0,0,0,13,-22,18,16,10,16,51,62,110,39,43,46,66,54,98,35,141,55,353,335,1187,1201,1150,1103,1092,1015,1233,673,877,735,854,869,855,760,993,1013,29999]} 1. e4 {[%emt 0:00:03]} c5 {[%emt 0:00:01]} 2. Nf3 {[%emt 0:00:01]} e6 {[%emt 0:00:00]} 3. d4 {[%emt 0:00:00]} cxd4 {[%emt 0:00:02]} 4. Nxd4 {[%emt 0:00:01]} a6 {[%emt 0:00:01]} 5. Bd3 {[%emt 0:00:08]} Qc7 {[%emt 0:00:03]} 6. O-O {[%emt 0:00:15]} Nf6 {[%emt 0:00:02]} 7. c3 {[%emt 0:00:10] B42: Sicilian: Kan Variation: 5 Bd3.} d6 {[%emt 0:00:03]} 8. Kh1 {[%emt 0:00:11]} Be7 {[%emt 0:00:01]} 9. f4 {[%emt 0:00:01] The position is equal.} O-O {[%emt 0:00:07]} 10. Nd2 {[%emt 0:00:06][%cal Oe4e5]} Nbd7 {[%emt 0:00:02] Inhibits e5.} 11. Qe1 {[%emt 0:00:11]} b6 {[%emt 0:00:09]} 12. Bc2 {[%emt 0:00:36]} Bb7 {[%emt 0:00:04]} 13. N2f3 {[%emt 0:00:33] [#]} Rfe8 $146 {[%emt 0:01:20]} ({Predecessor:} 13... Rfd8 14. Ng5 h6 15. Ngxe6 fxe6 16. Nxe6 Qc6 17. Qg3 Bf8 18. f5 Re8 19. Bxh6 Re7 20. Bb3 Kh8 21. Bg5 Ree8 22. Bxf6 Nxf6 23. Qh4+ {1-0 (23) Uchral,G (1747)-Naran Erdene,N (2100) Murun 2019}) 14. e5 {[%emt 0:00:39]} Nd5 {[%emt 0:00:30] [#]} (14... Ng4 $1 $14) 15. Qg3 {[%emt 0:01:17]} ({Much weaker is} 15. Qe4 $6 g6 $11) (15. f5 $1 $16 {[%cal Rf5e6]} Nxe5 16. fxe6) 15... Nf8 $14 {[%emt 0:00:44]} 16. Bd2 {[%emt 0:02:33]} Rac8 {[%emt 0:02:09]} 17. Rae1 {[%emt 0:00:09] 0x0.0002deb1bdc2dp-1022s more active pieces.} b5 {[%emt 0:00:04]} 18. a3 $40 {[%emt 0:02:26][%mdl 128] Black needs to defend precisely.} (18. f5 $16) 18... Red8 {[%emt 0:02:08]} (18... dxe5 $14 19. fxe5 (19. Nxe5 Bd6 $11) 19... f5) 19. Qh3 {[%emt 0:00:49]} ({White should try} 19. Qg4 $16) 19... Qd7 $2 {[%emt 0:00:52][%mdl 8192] Loses the game.} (19... Nb6 $14) 20. f5 $18 {[%emt 0:00:24][%cal Bf4f5,Bf5e6][%mdl 32]} dxe5 $2 {[%emt 0:01:33]} (20... exf5 21. Bxf5 Qc7) 21. fxe6 {[%emt 0:01:16]} Qd6 {[%emt 0:00:58]} 22. Nxe5 {[%emt 0:00:52]} f6 {[%emt 0:02:09]} 23. Nf7 {[%emt 0:00:11]} Qb6 {[%emt 0:00:24]} 24. Nxd8 {[%emt 0:00:40]} Rxd8 {[%emt 0:00:03]} 25. Qg4 {[%emt 0:00:29]} g6 {[%emt 0:00:34]} 26. Bh6 {[%emt 0:00:17] Bxf8 is the strong threat.} Qc7 {[%emt 0:02:48]} 27. Bb3 {[%emt 0:01:37]} Kh8 {[%emt 0:02:48] [#]} 28. Nf5 $1 {[%emt 0:01:01]} gxf5 {[%emt 0:01:56]} (28... Re8 29. Bxd5) 29. Qg7# {Weighted Error Value: White=0.43/Black=0.96} 1-0

[Event "Czech Open-Rapid 2022"]
[Site "Pardubice"]
[Date "2022.07.20"]
[Round "3.25"]
[White "Nespurek, Jan"]
[Black "Schatz, Christian"]
[Result "0-1"]
[ECO "B02"]
[WhiteElo "1571"]
[BlackElo "2137"]
[Annotator "TA"]
[PlyCount "42"]
[EventDate "2022.07.20"]
[EventType "swiss"]
[EventCountry "CZE"]
[SourceTitle "playchess.com"]
[Source "ChessBase"]
[SourceQuality "1"]
[TimeControl "1200+10"]

{[%evp 9,42,0,-8,-14,0,-83,-84,-79,-73,-111,-93,-107,-97,-102,-91,-112,-110,-152,-100,-153,-86,-92,-85,-97,-93,-102,-116,-212,-88,-92,-107,-229,-218,-2030,-1946]} 1. e4 {[%emt 0:00:03]} Nf6 {[%emt 0:00:09]} 2. Nc3 {[%emt 0:00:07]} d6 {[%emt 0:00:11]} 3. Nf3 {[%emt 0:00:29]} c5 {[%emt 0:00:17]} 4. d3 {[%emt 0:00:15]} g6 {[%emt 0:00:21]} 5. Be3 {[%emt 0:00:39]} Bg7 {[%emt 0:00:05]} 6. Be2 {[%emt 0:00:48] B50: Sicilian: 2...d6, Miscellaneous.} Nc6 {[%emt 0:00:04] [#]} 7. e5 $146 {[%emt 0:00:36]} (7. O-O $11 {keeps the balance.}) ({Predecessor:} 7. Qd2 Bd7 8. Bh6 Bxh6 9. Qxh6 Qb6 10. O-O-O Be6 11. Ng5 Nd4 12. Nxe6 fxe6 13. h3 O-O-O {0-1 (35) Qashashvili,A (2505)-Perez Leiva,J (2389) Chess.com INT 2022}) 7... Ng4 $17 {[%emt 0:00:21]} 8. exd6 {[%emt 0:00:27] Black is better.} Nxe3 {[%emt 0:00:29]} ({But not} 8... Qxd6 9. Ne4 Qc7 10. Bxc5 $11) (8... exd6 9. Bg5 Nf6 10. h3 $11) 9. d7+ {[%emt 0:00:32]} Qxd7 {[%emt 0:01:08]} ({Worse is} 9... Bxd7 10. fxe3 O-O 11. O-O $15) 10. fxe3 {[%emt 0:00:03]} O-O {[%emt 0:00:09][%cal Be8g8,Bg8h7,Bh7h8][%mdl 32]} 11. O-O {[%emt 0:00:03]} b6 {[%emt 0:00:21]} 12. Rb1 {[%emt 0:00:13]} Bb7 {[%emt 0:00:03]} 13. Ne4 {[%emt 0:00:15]} h6 {[%emt 0:00:13]} ({Black should try} 13... Bh6 14. Qc1 Nd4 $1) 14. Ng3 {[%emt 0:00:19]} (14. c3 $142) 14... f5 {[%emt 0:00:37] Black is more active.} ({Better is} 14... Qe6 15. Qd2 Qxa2) 15. c3 {[%emt 0:02:06]} Kh7 {[%emt 0:00:27]} 16. d4 {[%emt 0:01:03]} Rad8 {[%emt 0:00:41]} 17. Qc2 {[%emt 0:00:20]} Qe6 {[%emt 0:00:25]} 18. e4 {[%emt 0:02:20]} (18. Qc1 $17) 18... fxe4 {[%emt 0:03:14]} ({Less strong is} 18... Qxa2 19. d5 (19. exf5 cxd4 20. fxg6+ Kh8 $11) 19... fxe4 20. dxc6 exf3 21. cxb7 fxe2 22. Qxe2 $11) (18... cxd4 $19 {and Black stays clearly on top. White must now prevent ...f4.} 19. Bb5 f4) 19. Nxe4 {[%emt 0:00:04]} Kh8 {[%emt 0:01:45][%cal Rc6d4]} (19... Qxa2 $2 20. Neg5+ Kh8 21. Qxg6 $18) 20. dxc5 {[%emt 0:01:06] [#]} (20. d5 $17 Qxd5 21. Rbe1) 20... Nb4 $1 $19 {[%emt 0:01:59]} 21. Neg5 $2 {[%emt 0:00:59]} (21. cxb4 Bxe4 22. Qc4 Qxc4 23. Bxc4 Bxb1 24. Rxb1) 21... Qe3+ {Weighted Error Value: White=0.71/Black=0.14 (very precise)} (21... Nxc2 $2 22. Nxe6 Ne3 23. Nxf8 Rxf8 24. Nh4 $18) 0-1

[Event "Czech Open-Rapid 2022"]
[Site "Pardubice"]
[Date "2022.07.20"]
[Round "3.26"]
[White "Freibergs, Andrejs"]
[Black "Vokoun, Jan"]
[Result "1/2-1/2"]
[ECO "A05"]
[WhiteElo "1574"]
[BlackElo "2056"]
[Annotator "TA"]
[PlyCount "98"]
[EventDate "2022.07.20"]
[EventType "swiss"]
[EventCountry "CZE"]
[SourceTitle "playchess.com"]
[Source "ChessBase"]
[SourceQuality "1"]
[TimeControl "1200+10"]

{[%evp 9,98,3,13,2,44,32,23,6,38,-10,9,-31,-25,-64,-29,-36,-41,-41,-39,-57,-55,-174,-160,-144,-41,-71,-56,-169,-155,-301,-281,-462,-452,-435,-358,-752,-579,-647,-328,-288,-130,-380,-256,-258,-178,-172,-187,-225,-238,-234,0,0,0,0,102,0,0,0,0,0,0,0,0,0,0,0,0,-814,-641,-550,-36,-620,-604,-594,-533,-518,-490,-1059,-1056,-984,-984,-523,-34,-34,0,0,0,-29978,0,0,0]} 1. Nf3 {[%emt 0:00:05]} Nf6 {[%emt 0:00:10]} 2. b3 {[%emt 0:00:01]} c5 {[%emt 0:00:25]} 3. Bb2 {[%emt 0:00:06]} e6 {[%emt 0:00:01]} 4. g3 {[%emt 0:00:05]} b6 {[%emt 0:00:01]} 5. Bg2 {[%emt 0:00:03]} Bb7 {[%emt 0:00:01]} 6. O-O {[%emt 0:00:02] A05: Réti Opening: 1 Nf3 Nf6.} Qc7 {[%emt 0:00:40]} 7. c4 {[%emt 0:00:24]} Be7 {[%emt 0:00:16]} 8. d3 {[%emt 0:00:05] White has an edge.} O-O {[%emt 0:01:20]} 9. Nbd2 {[%emt 0:00:07]} (9. e4 $14 {deserves consideration.}) 9... d5 {[%emt 0:00:21] [#]} 10. Qb1 $146 {[%emt 0:00:40]} ({Predecessor:} 10. cxd5 exd5 11. Rc1 Nc6 12. d4 cxd4 13. Nxd4 Qd7 14. Nxc6 Bxc6 15. Nf3 Bb7 16. Ne5 Qe6 17. Nd3 {1-0 (62) Dimitrov,R (2509)-Boev,V (2289) Plovdiv 2020}) 10... d4 {[%emt 0:00:37]} 11. e3 {[%emt 0:03:33]} e5 {[%emt 0:01:00]} 12. Re1 {[%emt 0:00:58]} Nc6 13. exd4 {[%emt 0:00:44]} exd4 {[%emt 0:00:45]} 14. Ng5 {[%emt 0:01:24]} Rae8 {[%emt 0:00:54]} 15. Nge4 {[%emt 0:00:40]} (15. Ngf3 $15) 15... Nd7 {[%emt 0:00:38]} 16. f4 {[%emt 0:00:10]} h6 {[%emt 0:00:39]} ({Black should try} 16... f5 $17 17. Nf2 g6) 17. Nf3 {[%emt 0:01:03]} f5 {[%emt 0:00:40]} (17... Nf6 $5 {[%cal Rf6g4]} 18. Nf2 Bd8 $15) 18. Ned2 {[%emt 0:01:08] [#]} (18. Nf2 $1 $15) 18... g5 $1 $19 {[%emt 0:00:34]} 19. fxg5 {[%emt 0:02:16]} (19. Qd1 $17) 19... hxg5 {[%emt 0:00:03]} 20. Rxe7 $2 {[%emt 0:00:02]} (20. Re6 {was worth a try.} g4 21. Ne1) 20... Rxe7 {[%emt 0:00:07]} (20... Nxe7 $2 {perishes.} 21. Nxg5 Bxg2 22. Kxg2 $19) 21. Nxg5 {[%emt 0:00:01]} Nce5 {[%emt 0:02:15][%cal Bc6e5,Be5g4,Bg4e3][%mdl 32] And now ...Bxg2 would win.} 22. Ndf3 $2 {[%emt 0:02:40]} (22. Bd5+ Bxd5 23. cxd5) 22... Ng4 {[%emt 0:01:21]} 23. Bc1 {[%emt 0:01:22]} Ne3 {[%emt 0:00:18]} (23... Re2 $2 24. Bf4 Qc8 25. Bf1 $19) 24. Bxe3 {[%emt 0:00:18]} Rxe3 {[%emt 0:00:17]} (24... dxe3 $19 {is more deadly.} 25. d4 cxd4 26. Nxd4 Bxg2 27. Kxg2 e2) 25. Qf1 $2 {[%emt 0:00:02]} (25. Nh4 $17 {is a better defense.}) 25... Ne5 {[%emt 0:01:46]} 26. Nh4 {[%emt 0:00:36]} Nxd3 {[%emt 0:02:09]} 27. Bxb7 {[%emt 0:01:05]} Qxb7 {[%emt 0:00:05]} 28. Ng2 {[%emt 0:00:02] Prevents f4.} Qe7 {[%emt 0:01:17]} 29. Nxe3 {[%emt 0:01:00]} dxe3 {[%emt 0:03:01]} (29... Qxe3+ $19 30. Kh1 f4) 30. Qxd3 $11 {[%emt 0:00:27]} Qxg5 $19 {[%emt 0:00:02][%mdl 4096] Endgame KQR-KQR} 31. Qd5+ {[%emt 0:00:44]} Kh7 {[%emt 0:01:24]} (31... Kg7 $1 $11) 32. Qd7+ {[%emt 0:00:20]} (32. Re1 $16) 32... Kh6 {[%emt 0:00:20]} 33. Qe6+ {[%emt 0:00:11]} ({Not} 33. Qxa7 $2 Qd8 34. Qb7 Qd4 $19) 33... Rf6 $1 {[%emt 0:00:32]} 34. Qe8 {[%emt 0:00:05] Threatens to win with Rd1.} f4 {[%emt 0:00:27]} 35. Qh8+ {[%emt 0:00:26]} Kg6 {[%emt 0:00:01]} 36. Qg8+ {[%emt 0:01:14]} Kf5 {[%emt 0:00:03]} 37. Qd5+ {[%emt 0:00:56]} Kg4 {[%emt 0:00:15] ...Qxd5 is the strong threat.} 38. Qxg5+ {[%emt 0:00:14][%mdl 8192]} (38. h3+ $11 Kh5 39. Qf3+ Kg6 40. Re1) 38... Kxg5 {[%emt 0:00:01]} 39. gxf4+ {[%emt 0:00:02]} Rxf4 $2 $11 {[%emt 0:00:04] KR-KR} (39... Kf5 $19 40. a4 Ke4) 40. Re1 $2 {[%emt 0:00:01][%mdl 8192] [#]} (40. Rf1 $15 Rg4+ 41. Kh1) 40... Rg4+ $1 $19 {[%emt 0:00:04]} 41. Kf1 {[%emt 0:00:12]} Kf4 {[%emt 0:00:01]} 42. Re2 {[%emt 0:00:11]} Ke4 {[%emt 0:00:27] White must now prevent ...Kd3.} 43. h3 {[%emt 0:00:05]} (43. a4 $142 Kd3 44. Rb2) 43... Rh4 {[%emt 0:00:16]} 44. Rh2 {[%emt 0:00:11]} Kf3 {[%emt 0:00:07][%cal Ob6b5] aiming for ...b5!} 45. Ke1 {[%emt 0:00:03]} Kg3 $2 {[%emt 0:01:04]} (45... a5 $19 {[%cal Ob6b5] Hoping for ...b5!} 46. Rh1 a4 47. Rf1+ Ke4) 46. Rh1 $1 $15 {[%emt 0:00:01]} Rd4 {[%emt 0:00:21] ( -> ...Kg2)} 47. Ke2 {[%emt 0:00:21]} Kg2 {[%emt 0:00:28]} 48. Rd1 {[%emt 0:00:09][%mdl 8192]} (48. Rf1 $11) 48... Kxh3 $2 {[%emt 0:00:05]} (48... Rxd1 {mates} 49. h4 Rh1 50. Kxe3 Rxh4 51. Ke2 a5 52. Kd3 Kf3 53. Kc3 Rh2 54. b4 axb4+ 55. Kb3 Ke4 56. Ka4 Rxa2+ 57. Kb5 b3 58. Kc6 Ra7 59. Kd6 b2 60. Ke6 b1=Q 61. Kd6 Qa1 62. Kc6 Qf6+ 63. Kb5 Ra5#) 49. Rd3 {[%emt 0:00:07]} Kg4 {[%emt 0:00:12] Weighted Error Value: White=0.93/Black=0.84} 1/2-1/2